[Event "Titled Tuesday Blitz August 24 2021"]
[White "Warchol, Kamil"]
[Black "Kim, Sergey"]
[WhiteFideId "21858241"]
[BlackFideId "13700570"]
[WhiteElo "1694"]
[BlackElo "2469"]
[Result "0-1"]
[Round "10"]
[TimeControl "180+1"]
[Date "2021.08.24"]
[WhiteClock "0:00:06"]
[BlackClock "0:00:15"]

1. e4 {[%clk 0:03:00]}  e5 {[%clk 0:02:59]} 2. Nf3 {[%clk 0:02:59]}  Nc6 {[%clk 0:02:59]} 3. Bc4 {[%clk 0:02:57]}  Bc5 {[%clk 0:02:58]} 4. c3 {[%clk 0:02:57]}  Nf6 {[%clk 0:02:58]} 5. d3 {[%clk 0:02:56]}  d6 {[%clk 0:02:58]} 6. a4 {[%clk 0:02:55]}  a6 {[%clk 0:02:58]} 7. Nbd2 {[%clk 0:02:54]}  Ba7 {[%clk 0:02:58]} 8. Nf1 {[%clk 0:02:54]}  h6 {[%clk 0:02:54]} 9. Ng3 {[%clk 0:02:53]}  Be6 {[%clk 0:02:51]} 10. O-O {[%clk 0:02:51]}  O-O {[%clk 0:02:50]} 11. Qe2 {[%clk 0:02:48]}  Re8 {[%clk 0:02:40]} 12. Nh4 {[%clk 0:02:44]}  Ne7 {[%clk 0:02:30]} 13. h3 {[%clk 0:02:36]}  c6 {[%clk 0:02:24]} 14. Qf3 {[%clk 0:02:30]}  d5 {[%clk 0:02:11]} 15. Ba2 {[%clk 0:02:22]}  Ng6 {[%clk 0:02:07]} 16. Nhf5 {[%clk 0:02:15]}  Kh7 {[%clk 0:02:01]} 17. h4 {[%clk 0:02:06]}  Ng8 {[%clk 0:01:47]} 18. h5 {[%clk 0:01:56]}  Nh4 {[%clk 0:01:26]} 19. Qg4 {[%clk 0:01:41]}  Nxf5 {[%clk 0:01:23]} 20. exf5 {[%clk 0:01:40]}  Bd7 {[%clk 0:01:17]} 21. c4 {[%clk 0:01:33]}  Nf6 {[%clk 0:01:12]} 22. Qf3 {[%clk 0:01:31]}  e4 {[%clk 0:00:56]} 23. dxe4 {[%clk 0:01:24]}  dxe4 {[%clk 0:00:56]} 24. Qf4 {[%clk 0:01:18]}  Bb8 {[%clk 0:00:52]} 25. Qh4 {[%clk 0:01:12]}  Qe7 {[%clk 0:00:40]} 26. Be3 {[%clk 0:01:01]}  Be5 {[%clk 0:00:36]} 27. c5 {[%clk 0:00:50]}  Nd5 {[%clk 0:00:31]} 28. Qxe7 {[%clk 0:00:45]}  Rxe7 {[%clk 0:00:31]} 29. Bxd5 {[%clk 0:00:40]}  cxd5 {[%clk 0:00:30]} 30. Rfd1 {[%clk 0:00:40]}  Bc6 {[%clk 0:00:30]} 31. Bd4 {[%clk 0:00:39]}  Bxg3 {[%clk 0:00:25]} 32. fxg3 {[%clk 0:00:37]}  a5 {[%clk 0:00:25]} 33. b3 {[%clk 0:00:37]}  e3 {[%clk 0:00:22]} 34. Re1 {[%clk 0:00:35]}  Rae8 {[%clk 0:00:20]} 35. Ra2 {[%clk 0:00:35]}  Re4 {[%clk 0:00:20]} 36. Bc3 {[%clk 0:00:28]}  d4 {[%clk 0:00:19]} 37. Bxa5 {[%clk 0:00:27]}  d3 {[%clk 0:00:19]} 38. Kf1 {[%clk 0:00:24]}  Bd5 {[%clk 0:00:17]} 39. Rb2 {[%clk 0:00:22]}  R8e5 {[%clk 0:00:16]} 40. Kg1 {[%clk 0:00:21]}  Rxf5 {[%clk 0:00:12]} 41. g4 {[%clk 0:00:15]}  Rfe5 {[%clk 0:00:10]} 42. Bc7 {[%clk 0:00:13]}  Re6 {[%clk 0:00:10]} 43. Ba5 {[%clk 0:00:13]}  Rxg4 {[%clk 0:00:09]} 44. Bc3 {[%clk 0:00:13]}  d2 {[%clk 0:00:08]} 45. Bxd2 {[%clk 0:00:13]}  exd2 {[%clk 0:00:06]} 46. Rd1 {[%clk 0:00:11]}  Rxg2+ {[%clk 0:00:05]} 47. Kh1 {[%clk 0:00:07]}  Ree2 {[%clk 0:00:05]} 48. Rbxd2 {[%clk 0:00:04]}  Rxd2 {[%clk 0:00:05]} 49. Rxd2 {[%clk 0:00:04]}  Rxd2+ {[%clk 0:00:05]} 50. Kg1 {[%clk 0:00:04]}  Bxb3 {[%clk 0:00:05]} 51. a5 {[%clk 0:00:03]}  Ba4 {[%clk 0:00:05]} 52. c6 {[%clk 0:00:03]}  Bxc6 {[%clk 0:00:04]} 53. a6 {[%clk 0:00:03]}  bxa6 {[%clk 0:00:03]} 54. Kf1 {[%clk 0:00:03]}  Rd5 {[%clk 0:00:04]} 55. Kg1 {[%clk 0:00:03]}  Rxh5 {[%clk 0:00:05]} 56. Kf1 {[%clk 0:00:03]}  Rg5 {[%clk 0:00:06]} 57. Kf2 {[%clk 0:00:03]}  a5 {[%clk 0:00:07]} 58. Kf1 {[%clk 0:00:04]}  a4 {[%clk 0:00:08]} 59. Kf2 {[%clk 0:00:04]}  a3 {[%clk 0:00:09]} 60. Ke2 {[%clk 0:00:05]}  a2 {[%clk 0:00:10]} 61. Kf2 {[%clk 0:00:06]}  a1=Q {[%clk 0:00:10]} 62. Ke3 {[%clk 0:00:07]}  Qf6 {[%clk 0:00:10]} 63. Ke2 {[%clk 0:00:06]}  Re5+ {[%clk 0:00:11]} 64. Kd2 {[%clk 0:00:06]}  Be8 {[%clk 0:00:12]} 65. Kc3 {[%clk 0:00:06]}  Qd6 {[%clk 0:00:13]} 66. Kc2 {[%clk 0:00:06]}  Rc5+ {[%clk 0:00:14]} 67. Kb3 {[%clk 0:00:05]}  Qb6+ {[%clk 0:00:14]} 68. Ka3 {[%clk 0:00:06]}  Ra5# {[%clk 0:00:15]} 0-1


[Site "https://www.chess.com"]

[Event "Titled Tuesday Blitz August 24 2021"]
[White "Weetik, Vjacheslav"]
[Black "Liyanage, Ranindu Dilshan"]
[WhiteFideId "4153472"]
[BlackFideId "9915834"]
[WhiteElo "2752"]
[BlackElo "2629"]
[Result "1-0"]
[Round "10"]
[TimeControl "180+1"]
[Date "2021.08.24"]
[WhiteClock "0:00:14"]
[BlackClock "0:00:06"]

1. d4 {[%clk 0:02:57]}  Nf6 {[%clk 0:02:59]} 2. Bf4 {[%clk 0:02:57]}  e6 {[%clk 0:02:58]} 3. e3 {[%clk 0:02:58]}  d5 {[%clk 0:02:59]} 4. Nd2 {[%clk 0:02:58]}  c5 {[%clk 0:02:59]} 5. c3 {[%clk 0:02:58]}  Nc6 {[%clk 0:03:00]} 6. Bd3 {[%clk 0:02:58]}  Bd6 {[%clk 0:02:59]} 7. Bxd6 {[%clk 0:02:58]}  Qxd6 {[%clk 0:03:00]} 8. f4 {[%clk 0:02:59]}  Ne7 {[%clk 0:02:59]} 9. Qe2 {[%clk 0:02:54]}  O-O {[%clk 0:02:58]} 10. Ngf3 {[%clk 0:02:53]}  b6 {[%clk 0:02:58]} 11. O-O {[%clk 0:02:47]}  Bb7 {[%clk 0:02:54]} 12. Rad1 {[%clk 0:02:47]}  Qc7 {[%clk 0:02:48]} 13. Ne5 {[%clk 0:02:30]}  Ne4 {[%clk 0:02:43]} 14. Bxe4 {[%clk 0:02:02]}  dxe4 {[%clk 0:02:44]} 15. dxc5 {[%clk 0:02:03]}  bxc5 {[%clk 0:02:38]} 16. Nb3 {[%clk 0:02:02]}  Rfd8 {[%clk 0:02:25]} 17. Qb5 {[%clk 0:01:59]}  Bd5 {[%clk 0:02:00]} 18. c4 {[%clk 0:01:53]}  f6 {[%clk 0:01:44]} 19. cxd5 {[%clk 0:01:43]}  fxe5 {[%clk 0:01:44]} 20. dxe6 {[%clk 0:01:37]}  exf4 {[%clk 0:01:29]} 21. Rd7 {[%clk 0:01:07]}  Rxd7 {[%clk 0:01:22]} 22. exd7 {[%clk 0:01:07]}  c4 {[%clk 0:01:14]} 23. Nc5 {[%clk 0:00:58]}  Qd6 {[%clk 0:01:00]} 24. Nb7 {[%clk 0:00:35]}  Qd3 {[%clk 0:00:28]} 25. d8=Q+ {[%clk 0:00:31]}  Rxd8 {[%clk 0:00:26]} 26. Nxd8 {[%clk 0:00:32]}  Qxd8 {[%clk 0:00:25]} 27. Qxc4+ {[%clk 0:00:31]}  Kh8 {[%clk 0:00:25]} 28. Rxf4 {[%clk 0:00:22]}  Ng6 {[%clk 0:00:18]} 29. Rxe4 {[%clk 0:00:20]}  h5 {[%clk 0:00:13]} 30. h3 {[%clk 0:00:17]}  h4 {[%clk 0:00:13]} 31. Qe6 {[%clk 0:00:14]}  Qd1+ {[%clk 0:00:06]} 32. Kh2 {[%clk 0:00:14]}  Nf8 {[%clk 0:00:06]} 33. Rxh4+ {[%clk 0:00:14]} 1-0


[Site "https://www.chess.com"]

[Event "Titled Tuesday Blitz August 24 2021"]
[White "Zhou, Jianchao"]
[Black "Le, Tuan Minh"]
[WhiteFideId "8603537"]
[BlackFideId "12401153"]
[WhiteElo "2462"]
[BlackElo "2450"]
[Result "0-1"]
[Round "10"]
[TimeControl "180+1"]
[Date "2021.08.24"]
[WhiteClock "0:00:01"]
[BlackClock "0:00:05"]

1. d4 {[%clk 0:03:00]}  d5 {[%clk 0:02:58]} 2. c4 {[%clk 0:03:00]}  c6 {[%clk 0:02:56]} 3. Nf3 {[%clk 0:03:00]}  Nf6 {[%clk 0:02:51]} 4. Nc3 {[%clk 0:03:01]}  a6 {[%clk 0:02:52]} 5. c5 {[%clk 0:03:00]}  Nbd7 {[%clk 0:02:52]} 6. Bf4 {[%clk 0:02:59]}  Nh5 {[%clk 0:02:52]} 7. Bd2 {[%clk 0:02:59]}  Nhf6 {[%clk 0:02:52]} 8. Qc2 {[%clk 0:02:53]}  g6 {[%clk 0:02:51]} 9. g3 {[%clk 0:02:52]}  Bg7 {[%clk 0:02:50]} 10. Bg2 {[%clk 0:02:53]}  O-O {[%clk 0:02:51]} 11. O-O {[%clk 0:02:53]}  Re8 {[%clk 0:02:49]} 12. Bf4 {[%clk 0:02:41]}  Nh5 {[%clk 0:02:49]} 13. Bg5 {[%clk 0:02:29]}  Nhf6 {[%clk 0:02:26]} 14. e4 {[%clk 0:02:23]}  Nxe4 {[%clk 0:02:21]} 15. Nxe4 {[%clk 0:02:24]}  dxe4 {[%clk 0:02:22]} 16. Qxe4 {[%clk 0:02:23]}  h6 {[%clk 0:01:47]} 17. Bf4 {[%clk 0:02:13]}  g5 {[%clk 0:01:43]} 18. Be3 {[%clk 0:02:00]}  e5 {[%clk 0:01:34]} 19. dxe5 {[%clk 0:02:00]}  Nxe5 {[%clk 0:01:35]} 20. Rad1 {[%clk 0:01:43]}  Qf6 {[%clk 0:01:06]} 21. Nxe5 {[%clk 0:01:35]}  Qxe5 {[%clk 0:01:05]} 22. Qxe5 {[%clk 0:01:32]}  Bxe5 {[%clk 0:01:06]} 23. b4 {[%clk 0:01:28]}  Bg4 {[%clk 0:01:05]} 24. Rd2 {[%clk 0:01:12]}  Rad8 {[%clk 0:01:03]} 25. Rxd8 {[%clk 0:01:03]}  Rxd8 {[%clk 0:01:04]} 26. a4 {[%clk 0:00:56]}  Be2 {[%clk 0:00:36]} 27. Re1 {[%clk 0:00:51]}  Rd1 {[%clk 0:00:36]} 28. Rxd1 {[%clk 0:00:43]}  Bxd1 {[%clk 0:00:37]} 29. Bd2 {[%clk 0:00:32]}  Bxa4 {[%clk 0:00:26]} 30. Bh3 {[%clk 0:00:32]}  Bd4 {[%clk 0:00:25]} 31. Bc8 {[%clk 0:00:31]}  Bb5 {[%clk 0:00:22]} 32. Bxb7 {[%clk 0:00:31]}  Kg7 {[%clk 0:00:22]} 33. Bc8 {[%clk 0:00:31]}  Kf6 {[%clk 0:00:21]} 34. Kg2 {[%clk 0:00:31]}  Kg6 {[%clk 0:00:18]} 35. f4 {[%clk 0:00:27]}  f5 {[%clk 0:00:16]} 36. fxg5 {[%clk 0:00:26]}  hxg5 {[%clk 0:00:17]} 37. h4 {[%clk 0:00:25]}  gxh4 {[%clk 0:00:07]} 38. gxh4 {[%clk 0:00:26]}  Bf6 {[%clk 0:00:07]} 39. Kg3 {[%clk 0:00:21]}  Be5+ {[%clk 0:00:08]} 40. Kg2 {[%clk 0:00:18]}  Bc4 {[%clk 0:00:08]} 41. Bd7 {[%clk 0:00:13]}  Bd5+ {[%clk 0:00:08]} 42. Kh3 {[%clk 0:00:13]}  Bf3 {[%clk 0:00:05]} 43. Be8+ {[%clk 0:00:13]}  Kg7 {[%clk 0:00:04]} 44. h5 {[%clk 0:00:11]}  Bg4+ {[%clk 0:00:03]} 45. Kh4 {[%clk 0:00:11]}  Bf6+ {[%clk 0:00:03]} 46. Kg3 {[%clk 0:00:10]}  Be5+ {[%clk 0:00:03]} 47. Kh4 {[%clk 0:00:10]}  Bf6+ {[%clk 0:00:04]} 48. Bg5 {[%clk 0:00:07]}  Bc3 {[%clk 0:00:04]} 49. Bf4 {[%clk 0:00:04]}  Bxb4 {[%clk 0:00:04]} 50. Bxc6 {[%clk 0:00:04]}  Bxc5 {[%clk 0:00:04]} 51. Be5+ {[%clk 0:00:05]}  Kh7 {[%clk 0:00:04]} 52. Be8 {[%clk 0:00:05]}  Be7+ {[%clk 0:00:04]} 53. Kg3 {[%clk 0:00:03]}  a5 {[%clk 0:00:05]} 54. Bg6+ {[%clk 0:00:03]}  Kh6 {[%clk 0:00:05]} 55. Bf4+ {[%clk 0:00:03]}  Bg5 {[%clk 0:00:06]} 56. Bc7 {[%clk 0:00:03]}  a4 {[%clk 0:00:06]} 57. Be8 {[%clk 0:00:02]}  Bd1 {[%clk 0:00:06]} 58. Bd6 {[%clk 0:00:02]}  Bc1 {[%clk 0:00:06]} 59. Bf8+ {[%clk 0:00:01]}  Kh7 {[%clk 0:00:07]} 60. h6 {[%clk 0:00:01]}  a3 {[%clk 0:00:06]} 61. Bf7 {[%clk 0:00:01]}  Bc2 {[%clk 0:00:05]} 62. Bg7 {[%clk 0:00:01]}  Bb1 {[%clk 0:00:05]} 0-1


[Site "https://www.chess.com"]

[Event "Titled Tuesday Blitz August 24 2021"]
[White "Aghasiyev, Kamal"]
[Black "Leitao, Rafael"]
[WhiteFideId "13402854"]
[BlackFideId "2101246"]
[WhiteElo "2210"]
[BlackElo "2609"]
[Result "0-1"]
[Round "11"]
[TimeControl "180+1"]
[Date "2021.08.24"]
[WhiteClock "0:00:01"]
[BlackClock "0:00:25"]

1. d4 {[%clk 0:03:00]}  Nf6 {[%clk 0:02:55]} 2. c4 {[%clk 0:02:59]}  e6 {[%clk 0:02:54]} 3. Nf3 {[%clk 0:02:57]}  Bb4+ {[%clk 0:02:53]} 4. Bd2 {[%clk 0:02:53]}  c5 {[%clk 0:02:51]} 5. Bxb4 {[%clk 0:02:49]}  cxb4 {[%clk 0:02:51]} 6. Nbd2 {[%clk 0:02:43]}  O-O {[%clk 0:02:45]} 7. e4 {[%clk 0:02:20]}  d6 {[%clk 0:02:42]} 8. Bd3 {[%clk 0:02:10]}  e5 {[%clk 0:02:38]} 9. d5 {[%clk 0:02:06]}  a5 {[%clk 0:02:33]} 10. a3 {[%clk 0:02:01]}  Na6 {[%clk 0:02:32]} 11. O-O {[%clk 0:01:56]}  Bg4 {[%clk 0:02:30]} 12. h3 {[%clk 0:01:55]}  Bh5 {[%clk 0:02:24]} 13. g4 {[%clk 0:01:46]}  Bg6 {[%clk 0:02:22]} 14. Qe2 {[%clk 0:01:46]}  Nc5 {[%clk 0:02:09]} 15. axb4 {[%clk 0:01:41]}  axb4 {[%clk 0:02:08]} 16. Qe3 {[%clk 0:01:34]}  Nfd7 {[%clk 0:01:51]} 17. Rfc1 {[%clk 0:01:31]}  Ra5 {[%clk 0:01:39]} 18. Ne1 {[%clk 0:01:27]}  Qa8 {[%clk 0:01:35]} 19. Nc2 {[%clk 0:00:51]}  Nxd3 {[%clk 0:01:18]} 20. Qxd3 {[%clk 0:00:49]}  Nc5 {[%clk 0:01:19]} 21. Qe3 {[%clk 0:00:49]}  b3 {[%clk 0:01:11]} 22. Rxa5 {[%clk 0:00:47]}  Qxa5 {[%clk 0:01:09]} 23. Na3 {[%clk 0:00:45]}  Rd8 {[%clk 0:00:59]} 24. f3 {[%clk 0:00:44]}  f6 {[%clk 0:00:59]} 25. Qc3 {[%clk 0:00:39]}  Qb6 {[%clk 0:00:56]} 26. Kg2 {[%clk 0:00:38]}  Be8 {[%clk 0:00:52]} 27. Qe3 {[%clk 0:00:34]}  Ra8 {[%clk 0:00:49]} 28. Rc3 {[%clk 0:00:32]}  Ba4 {[%clk 0:00:38]} 29. h4 {[%clk 0:00:19]}  Rf8 {[%clk 0:00:33]} 30. Nf1 {[%clk 0:00:17]}  Bd7 {[%clk 0:00:30]} 31. Nd2 {[%clk 0:00:14]}  Ba4 {[%clk 0:00:30]} 32. Nf1 {[%clk 0:00:11]}  Qb4 {[%clk 0:00:28]} 33. Ng3 {[%clk 0:00:10]}  Bd7 {[%clk 0:00:28]} 34. Kf2 {[%clk 0:00:06]}  Ra8 {[%clk 0:00:27]} 35. Ne2 {[%clk 0:00:05]}  Rxa3 {[%clk 0:00:27]} 36. bxa3 {[%clk 0:00:05]}  Qxa3 {[%clk 0:00:27]} 37. Qc1 {[%clk 0:00:03]}  Qa2 {[%clk 0:00:25]} 38. Rd3 {[%clk 0:00:01]}  Nxd3+ {[%clk 0:00:25]} 0-1


[Site "https://www.chess.com"]

[Event "Titled Tuesday Blitz August 24 2021"]
[White "Bai, Adelard"]
[Black "Ovetchkin, Roman"]
[WhiteFideId "16301188"]
[BlackFideId "4119991"]
[WhiteElo "2120"]
[BlackElo "2432"]
[Result "1-0"]
[Round "11"]
[TimeControl "180+1"]
[Date "2021.08.24"]
[WhiteClock "0:00:03"]
[BlackClock "0:00:15"]

1. d4 {[%clk 0:03:00]}  Nf6 {[%clk 0:02:59]} 2. Nf3 {[%clk 0:03:00]}  g6 {[%clk 0:03:00]} 3. Bf4 {[%clk 0:03:00]}  d6 {[%clk 0:02:59]} 4. e3 {[%clk 0:02:59]}  Nh5 {[%clk 0:02:59]} 5. Bg5 {[%clk 0:02:59]}  h6 {[%clk 0:02:59]} 6. Bh4 {[%clk 0:02:59]}  g5 {[%clk 0:03:00]} 7. Bg3 {[%clk 0:03:00]}  Bg7 {[%clk 0:02:58]} 8. Bd3 {[%clk 0:02:41]}  e6 {[%clk 0:02:58]} 9. c3 {[%clk 0:02:32]}  Qe7 {[%clk 0:02:56]} 10. Nbd2 {[%clk 0:02:27]}  Nd7 {[%clk 0:02:56]} 11. Ng1 {[%clk 0:01:56]}  Nxg3 {[%clk 0:02:53]} 12. hxg3 {[%clk 0:01:57]}  c5 {[%clk 0:02:44]} 13. Ngf3 {[%clk 0:01:52]}  b6 {[%clk 0:02:40]} 14. Qe2 {[%clk 0:01:44]}  a6 {[%clk 0:02:38]} 15. O-O-O {[%clk 0:01:30]}  Bb7 {[%clk 0:02:37]} 16. e4 {[%clk 0:01:27]}  g4 {[%clk 0:02:24]} 17. Nh2 {[%clk 0:01:18]}  h5 {[%clk 0:02:22]} 18. Nb3 {[%clk 0:01:11]}  b5 {[%clk 0:02:16]} 19. Bc2 {[%clk 0:01:06]}  cxd4 {[%clk 0:02:03]} 20. Nxd4 {[%clk 0:01:01]}  Rc8 {[%clk 0:01:54]} 21. Kb1 {[%clk 0:01:00]}  Ne5 {[%clk 0:01:50]} 22. Nf1 {[%clk 0:00:52]}  Qc7 {[%clk 0:01:28]} 23. Ne3 {[%clk 0:00:51]}  Qb6 {[%clk 0:01:26]} 24. a3 {[%clk 0:00:45]}  Ke7 {[%clk 0:01:03]} 25. f4 {[%clk 0:00:44]}  gxf3 {[%clk 0:01:02]} 26. gxf3 {[%clk 0:00:45]}  Nc4 {[%clk 0:00:56]} 27. Nxc4 {[%clk 0:00:38]}  Rxc4 {[%clk 0:00:56]} 28. Qe3 {[%clk 0:00:37]}  Qc7 {[%clk 0:00:52]} 29. f4 {[%clk 0:00:30]}  Kd8 {[%clk 0:00:44]} 30. f5 {[%clk 0:00:27]}  Kc8 {[%clk 0:00:36]} 31. fxe6 {[%clk 0:00:20]}  Bxd4 {[%clk 0:00:36]} 32. Rxd4 {[%clk 0:00:21]}  fxe6 {[%clk 0:00:35]} 33. Rxc4 {[%clk 0:00:17]}  bxc4 {[%clk 0:00:35]} 34. Rd1 {[%clk 0:00:16]}  e5 {[%clk 0:00:29]} 35. Qg5 {[%clk 0:00:14]}  Kb8 {[%clk 0:00:27]} 36. Qf6 {[%clk 0:00:14]}  Rd8 {[%clk 0:00:27]} 37. Rh1 {[%clk 0:00:12]}  Rg8 {[%clk 0:00:20]} 38. Rxh5 {[%clk 0:00:08]}  Rxg3 {[%clk 0:00:20]} 39. Qf8+ {[%clk 0:00:06]}  Ka7 {[%clk 0:00:20]} 40. Rh6 {[%clk 0:00:07]}  Rg1+ {[%clk 0:00:19]} 41. Ka2 {[%clk 0:00:07]}  Rg2 {[%clk 0:00:20]} 42. Kb1 {[%clk 0:00:06]}  Qb6 {[%clk 0:00:19]} 43. Qxd6 {[%clk 0:00:05]}  Qg1+ {[%clk 0:00:19]} 44. Bd1 {[%clk 0:00:05]}  Qf2 {[%clk 0:00:18]} 45. Be2 {[%clk 0:00:02]}  Qg1+ {[%clk 0:00:16]} 46. Ka2 {[%clk 0:00:02]}  Rxe2 {[%clk 0:00:16]} 47. Rh8 {[%clk 0:00:02]}  Qb6 {[%clk 0:00:15]} 48. Qb8# {[%clk 0:00:03]} 1-0


[Site "https://www.chess.com"]

[Event "Titled Tuesday Blitz August 24 2021"]
[White "Bilan, Danila"]
[Black "Srihari L R"]
[WhiteFideId "24161918"]
[BlackFideId "46617116"]
[WhiteElo "2164"]
[BlackElo "2121"]
[Result "0-1"]
[Round "11"]
[TimeControl "180+1"]
[Date "2021.08.24"]
[WhiteClock "0:00:02"]
[BlackClock "0:00:55"]

1. d4 {[%clk 0:03:00]}  d6 {[%clk 0:02:59]} 2. Nf3 {[%clk 0:03:00]}  g6 {[%clk 0:02:59]} 3. Bg5 {[%clk 0:02:59]}  Bg7 {[%clk 0:02:59]} 4. c3 {[%clk 0:03:00]}  Nd7 {[%clk 0:02:59]} 5. Nbd2 {[%clk 0:03:00]}  Ngf6 {[%clk 0:02:59]} 6. e4 {[%clk 0:03:00]}  e5 {[%clk 0:02:58]} 7. dxe5 {[%clk 0:03:00]}  Nxe5 {[%clk 0:02:56]} 8. Nxe5 {[%clk 0:03:00]}  dxe5 {[%clk 0:02:57]} 9. Be2 {[%clk 0:02:57]}  O-O {[%clk 0:02:55]} 10. O-O {[%clk 0:02:57]}  Qe7 {[%clk 0:02:55]} 11. Qc2 {[%clk 0:02:56]}  Rd8 {[%clk 0:02:54]} 12. Rad1 {[%clk 0:02:56]}  h6 {[%clk 0:02:52]} 13. Bxf6 {[%clk 0:02:52]}  Bxf6 {[%clk 0:02:50]} 14. Nc4 {[%clk 0:02:49]}  Be6 {[%clk 0:02:50]} 15. b3 {[%clk 0:02:35]}  c6 {[%clk 0:02:47]} 16. Rxd8+ {[%clk 0:02:29]}  Rxd8 {[%clk 0:02:47]} 17. Rd1 {[%clk 0:02:29]}  b5 {[%clk 0:02:46]} 18. Ne3 {[%clk 0:02:10]}  Bg5 {[%clk 0:02:40]} 19. Rxd8+ {[%clk 0:02:07]}  Qxd8 {[%clk 0:02:41]} 20. Qd1 {[%clk 0:02:08]}  Qa5 {[%clk 0:02:39]} 21. Qd2 {[%clk 0:02:00]}  Bxe3 {[%clk 0:02:36]} 22. fxe3 {[%clk 0:01:56]}  Kg7 {[%clk 0:02:36]} 23. h3 {[%clk 0:01:51]}  Qa3 {[%clk 0:02:34]} 24. Kf2 {[%clk 0:01:46]}  a5 {[%clk 0:02:32]} 25. c4 {[%clk 0:01:39]}  bxc4 {[%clk 0:02:29]} 26. bxc4 {[%clk 0:01:39]}  Qb4 {[%clk 0:02:21]} 27. Qc1 {[%clk 0:01:17]}  a4 {[%clk 0:02:17]} 28. a3 {[%clk 0:01:17]}  Qb3 {[%clk 0:02:16]} 29. Bd1 {[%clk 0:01:13]}  Qa2+ {[%clk 0:02:14]} 30. Be2 {[%clk 0:01:11]}  c5 {[%clk 0:02:08]} 31. Qc3 {[%clk 0:01:08]}  Kf6 {[%clk 0:02:01]} 32. Qc1 {[%clk 0:01:02]}  Bd7 {[%clk 0:01:58]} 33. Qc3 {[%clk 0:00:59]}  Bc6 {[%clk 0:01:56]} 34. Kf3 {[%clk 0:00:53]}  Qb1 {[%clk 0:01:49]} 35. Bd3 {[%clk 0:00:47]}  Qd1+ {[%clk 0:01:49]} 36. Kf2 {[%clk 0:00:48]}  Ke6 {[%clk 0:01:46]} 37. Be2 {[%clk 0:00:37]}  Qh1 {[%clk 0:01:39]} 38. Bd3 {[%clk 0:00:37]}  f5 {[%clk 0:01:39]} 39. Qc2 {[%clk 0:00:33]}  f4 {[%clk 0:01:32]} 40. exf4 {[%clk 0:00:33]}  exf4 {[%clk 0:01:33]} 41. Be2 {[%clk 0:00:31]}  Qa1 {[%clk 0:01:27]} 42. e5 {[%clk 0:00:23]}  Qd4+ {[%clk 0:01:25]} 43. Kf1 {[%clk 0:00:22]}  Qe4 {[%clk 0:01:14]} 44. Bg4+ {[%clk 0:00:14]}  Kxe5 {[%clk 0:01:13]} 45. Qb2+ {[%clk 0:00:14]}  Qd4 {[%clk 0:01:13]} 46. Qb8+ {[%clk 0:00:14]}  Qd6 {[%clk 0:01:12]} 47. Qh8+ {[%clk 0:00:14]}  Qf6 {[%clk 0:01:11]} 48. Qxh6 {[%clk 0:00:14]}  Kd4 {[%clk 0:01:04]} 49. Be2 {[%clk 0:00:10]}  Kc3 {[%clk 0:01:00]} 50. Qh7 {[%clk 0:00:07]}  f3 {[%clk 0:00:59]} 51. gxf3 {[%clk 0:00:03]}  Bxf3 {[%clk 0:00:59]} 52. Qc7 {[%clk 0:00:02]}  Bxe2+ {[%clk 0:00:57]} 53. Kxe2 {[%clk 0:00:03]}  Kxc4 {[%clk 0:00:55]} 54. Qg3 {[%clk 0:00:01]}  Qb2+ {[%clk 0:00:55]} 55. Kd1 {[%clk 0:00:01]}  Qb3+ {[%clk 0:00:54]} 56. Qxb3+ {[%clk 0:00:02]}  Kxb3 {[%clk 0:00:55]} 0-1


[Site "https://www.chess.com"]

[Event "Titled Tuesday Blitz August 24 2021"]
[White "Costachi, Mihnea"]
[Black "Castellanos Rodriguez, Renier"]
[WhiteFideId "1217518"]
[BlackFideId "3404650"]
[WhiteElo "2482"]
[BlackElo "2612"]
[Result "1-0"]
[Round "11"]
[TimeControl "180+1"]
[Date "2021.08.24"]
[WhiteClock "0:00:37"]
[BlackClock "0:00:19"]

1. d4 {[%clk 0:03:00]}  Nf6 {[%clk 0:02:33]} 2. c4 {[%clk 0:03:00]}  e6 {[%clk 0:02:33]} 3. Nf3 {[%clk 0:03:01]}  d5 {[%clk 0:02:32]} 4. Nc3 {[%clk 0:03:01]}  c6 {[%clk 0:02:32]} 5. Bg5 {[%clk 0:03:01]}  dxc4 {[%clk 0:02:31]} 6. a4 {[%clk 0:03:00]}  h6 {[%clk 0:02:22]} 7. Bxf6 {[%clk 0:02:58]}  Qxf6 {[%clk 0:02:22]} 8. e3 {[%clk 0:02:58]}  Nd7 {[%clk 0:02:21]} 9. Bxc4 {[%clk 0:02:58]}  g6 {[%clk 0:02:22]} 10. O-O {[%clk 0:02:59]}  Bg7 {[%clk 0:02:22]} 11. Rc1 {[%clk 0:02:58]}  O-O {[%clk 0:02:22]} 12. Qe2 {[%clk 0:02:54]}  Qe7 {[%clk 0:02:20]} 13. e4 {[%clk 0:02:53]}  b6 {[%clk 0:02:20]} 14. d5 {[%clk 0:02:50]}  exd5 {[%clk 0:02:05]} 15. exd5 {[%clk 0:02:50]}  Qxe2 {[%clk 0:02:06]} 16. Nxe2 {[%clk 0:02:49]}  cxd5 {[%clk 0:02:00]} 17. Bxd5 {[%clk 0:02:49]}  Rb8 {[%clk 0:02:00]} 18. Rc7 {[%clk 0:02:49]}  Nc5 {[%clk 0:01:48]} 19. Nf4 {[%clk 0:02:43]}  Bd7 {[%clk 0:01:30]} 20. b4 {[%clk 0:02:41]}  Ne6 {[%clk 0:01:25]} 21. Bxe6 {[%clk 0:02:29]}  Bxe6 {[%clk 0:01:26]} 22. Nxe6 {[%clk 0:02:29]}  fxe6 {[%clk 0:01:26]} 23. Rxa7 {[%clk 0:02:30]}  Ra8 {[%clk 0:01:26]} 24. Rb7 {[%clk 0:02:26]}  Rxa4 {[%clk 0:01:21]} 25. Rxb6 {[%clk 0:02:27]}  g5 {[%clk 0:01:19]} 26. h3 {[%clk 0:02:26]}  Rf4 {[%clk 0:01:19]} 27. Rc1 {[%clk 0:02:17]}  Raxb4 {[%clk 0:01:14]} 28. Rxe6 {[%clk 0:02:16]}  Rbe4 {[%clk 0:01:14]} 29. Rc8+ {[%clk 0:02:14]}  Kh7 {[%clk 0:01:10]} 30. Rec6 {[%clk 0:02:13]}  Re7 {[%clk 0:01:08]} 31. Ra6 {[%clk 0:02:03]}  Rf6 {[%clk 0:01:06]} 32. Rxf6 {[%clk 0:02:00]}  Bxf6 {[%clk 0:01:07]} 33. Rc6 {[%clk 0:01:59]}  Kg7 {[%clk 0:01:07]} 34. g3 {[%clk 0:01:54]}  Kf7 {[%clk 0:01:07]} 35. Kf1 {[%clk 0:01:53]}  Re6 {[%clk 0:01:07]} 36. Rc7+ {[%clk 0:01:53]}  Re7 {[%clk 0:01:07]} 37. Rc8 {[%clk 0:01:53]}  Re8 {[%clk 0:01:08]} 38. Rc4 {[%clk 0:01:51]}  Ra8 {[%clk 0:01:07]} 39. Rc2 {[%clk 0:01:50]}  Re8 {[%clk 0:01:05]} 40. Kg2 {[%clk 0:01:49]}  Kg6 {[%clk 0:01:04]} 41. g4 {[%clk 0:01:43]}  Kf7 {[%clk 0:01:05]} 42. Ng1 {[%clk 0:01:42]}  Be5 {[%clk 0:01:01]} 43. Ne2 {[%clk 0:01:41]}  Re7 {[%clk 0:01:00]} 44. Rc6 {[%clk 0:01:39]}  Re6 {[%clk 0:01:00]} 45. Rc4 {[%clk 0:01:36]}  Kg6 {[%clk 0:00:59]} 46. Re4 {[%clk 0:01:34]}  Kf6 {[%clk 0:01:00]} 47. Ng3 {[%clk 0:01:32]}  Bxg3 {[%clk 0:00:53]} 48. Rxe6+ {[%clk 0:01:32]}  Kxe6 {[%clk 0:00:54]} 49. Kxg3 {[%clk 0:01:33]}  Ke5 {[%clk 0:00:54]} 50. f4+ {[%clk 0:00:44]}  gxf4+ {[%clk 0:00:54]} 51. Kf3 {[%clk 0:00:45]}  Ke6 {[%clk 0:00:53]} 52. Kxf4 {[%clk 0:00:44]}  Kf6 {[%clk 0:00:53]} 53. h4 {[%clk 0:00:37]}  Ke6 {[%clk 0:00:41]} 54. Ke4 {[%clk 0:00:37]}  Kf6 {[%clk 0:00:39]} 55. Kd5 {[%clk 0:00:37]}  Kf7 {[%clk 0:00:27]} 56. Ke5 {[%clk 0:00:36]}  Ke7 {[%clk 0:00:20]} 57. Kf5 {[%clk 0:00:36]}  Kf7 {[%clk 0:00:20]} 58. h5 {[%clk 0:00:36]}  Kg7 {[%clk 0:00:19]} 59. Ke6 {[%clk 0:00:37]} 1-0


[Site "https://www.chess.com"]